Cogmind - Beta 16 @@@ ROGUE MODE // 2025.10.31 @ 17:47:57 Player: Err. String Expected Got Nil Result: Self-destructed Performance ------------- Evolutions (2) 1000 Regions Visited (3) 600 Robots Destroyed (28) 140 Value Destroyed (547) 547 Prototype IDs (0) 0 Alien Tech Used (0) 0 Bonus (0) 0 TOTAL SCORE: 2287 Bonus ------- None Cogmind --------- Core Integrity 531/550 Matter 260/300 Energy 150/150 System Corruption 0% Temperature Cool (0) Movement Treading (160) Location -8/Materials Parts ------- > --- POWER (1) -------- Light Angular Momentum Engine > --- PROPULSION (4) --- Light Treads Light Treads Light Treads Light Treads > --- UTILITY (3) ------ Improved Heat Sink Large Storage Unit > --- WEAPON (3) ------- Medium Laser Shotgun Light Cannon > --- INVENTORY (15) --- Ion Engine Light Ion Engine Cooled Airjet Cooled Airjet Cooled Airjet Cooled Airjet High-capacity Matter Pod (200) Improved Shield Generator Grenade Launcher Peak State ------------ > --- POWER ------------ Light Angular Momentum Engine > --- PROPULSION ------- Light Treads Light Treads Light Treads Light Treads > --- UTILITY ---------- Improved Heat Sink Large Storage Unit Seismic Detector > --- WEAPON ----------- EM Pulse Gun Medium Laser Light Cannon > --- INVENTORY -------- Ion Engine Light Ion Engine Light Treads Cooled Airjet Cooled Airjet Cooled Airjet Cooled Airjet High-capacity Matter Pod Improved Shield Generator Shotgun Grenade Launcher [Rating: 20] Favorites ----------- Power Light Ion Engine Engine Light Ion Engine Propulsion Light Treads Treads Light Treads Utility Improved Heat Sink Device Improved Heat Sink Storage Small Storage Unit Weapon Medium Laser Energy Gun Medium Laser Ballistic Gun Shotgun Ballistic Cannon Light Cannon Launcher Grenade Launcher Build | -11 -10 -10 -8 ------- Run | Yrd Mat Sub Mat Slots Evolved 4 | . . . 4 Power . | . . . . Propulsion 2 | . . . 2 Utility 1 | . . . 1 Weapon 1 | . . . 1 Parts Attached 20 | 8 6 . 6 Power 3 | 1 1 . 1 Engine 3 | 1 1 . 1 Core . | . . . . Reactor . | . . . . Propulsion 5 | 2 . . 3 Treads 5 | 2 . . 3 Leg . | . . . . Wheel . | . . . . Hover . | . . . . Flight . | . . . . Utility 5 | 2 3 . . Device 3 | 1 2 . . Storage 2 | 1 1 . . Processor . | . . . . Hackware . | . . . . Protection . | . . . . Artifact . | . . . . Weapon 7 | 3 2 . 2 Energy Gun 4 | 3 1 . . Energy Cannon . | . . . . Ballistic Gun 1 | . . . 1 Ballistic Cannon 1 | . . . 1 Launcher 1 | . 1 . . Special Weapon . | . . . . Impact Weapon . | . . . . Slashing Weapon . | . . . . Piercing Weapon . | . . . . Special Melee Weapon . | . . . . Unidentified Prototypes . | . . . . Parts Lost 4 | . . . 4 Power . | . . . . Propulsion 1 | . . . 1 Utility 1 | . . . 1 Weapon 2 | . . . 2 Highest Loss Streak 3 | . . . 3 To Critical Strikes . | . . . . Average Backups 7 | 2 8 9 7 Power 1 | . 1 1 1 Propulsion 2 | 1 2 3 2 Utility 1 | . 1 2 1 Weapon 2 | . 2 3 1 Tool/Special . | . . . . Unused Backups 10 | . 3 . 7 Power 1 | . . . 1 Propulsion 7 | . 3 . 4 Utility 2 | . . . 2 Weapon . | . . . . Tool/Special . | . . . . Average Slot Usage (%) 98 | . 100 100 94 Engine 13 | . 14 14 9 Treads 29 | . 28 28 35 Device 14 | . 14 14 14 Storage 13 | . 14 14 9 Energy Gun 25 | . 28 28 15 Ballistic Cannon 1 | . . . 7 Peak Build Rating 20 | 7 9 9 20 Average Rating 9 | 5 8 9 16 On Entrance 6 | . 7 9 9 Avg Prop Armor Cover (%) . | . . . . Naked Turns . | . . . . Heaviest Build 38 | 14 28 28 38 Greatest Support 80 | 40 40 40 80 Greatest Overweight (x) . | . . . . Average Overweight (x) . | . . . . Largest Inventory Capacity 15 | 8 15 15 15 Average Capacity 11 | 6 10 15 15 Most Carried 11 | 4 9 9 11 Average Carried 7 | 2 8 9 7 Final Capacity 15 | 8 15 15 15 Final Carried 9 | 4 9 9 9 Class Distribution -------------------- 83% | Mutant 12% | Gunner 3% | Scavenger-Mutant Dominant Class ---------------- Mutant | -10/Materials Mutant | -10/Subcaves Gunner | -8/Materials Resources | -11 -10 -10 -8 ----------- Run | Yrd Mat Sub Mat Matter Collected 689 | 280 285 20 104 Remotely . | . . . . Salvage Created 859 | 93 528 . 238 Parts 51 | 9 33 . 9 Haulers Intercepted 2 | . 1 . 1 Recyclers Shooed 2 | . 1 . 1 Parts Field Recycled . | . . . . Retrieved Matter . | . . . . Parts Self-Destructed . | . . . . Prevented . | . . . . Parts Restored . | . . . . Kills | -11 -10 -10 -8 ------- Run | Yrd Mat Sub Mat Combat Hostiles Destroyed 19 | . 16 . 3 Guns 18 | . 16 . 2 Cannons 1 | . . . 1 Classes Destroyed 7 | 2 4 . 1 Worker 1 | . 1 . . Tunneler 2 | 2 . . . Hauler 2 | . 1 . 1 Recycler 3 | 1 1 . 1 Watcher 1 | . . . 1 Swarmer 9 | . 9 . . Grunt 10 | . 7 . 3 Best Kill Streak 6 | 2 6 . 2 Combat Bots Only 3 | . 3 . 2 Max Kills in Single Turn 2 | 1 2 . 1 Gunslinging . | . . . . Exploded . | . . . . Melee . | . . . . Uniques/NPCs Destroyed . | . . . . Combat | -11 -10 -10 -8 -------- Run | Yrd Mat Sub Mat Hostile Shots Fired 96 | . 72 . 24 Missed 38 | . 26 . 12 Hits 58 | . 46 . 12 Projectile 58 | . 46 . 12 Critical Strikes 3 | . 1 . 2 Damage Taken 780 | . 438 . 342 Core 97 | . 78 . 19 Absorbed by Shields . | . . . . Core Remaining (%) 84 | 100 . 68 . Volleys Fired 71 | 5 47 . 19 Largest 3 | 2 2 . 3 Hottest 130 | 90 100 . 130 Shots Fired 154 | 10 92 . 52 Gun 134 | 10 91 . 33 Cannon 19 | . . . 19 Launcher 1 | . 1 . . Special . | . . . . Kinetic 20 | . . . 20 Thermal 119 | 7 91 . 21 Explosive 1 | . 1 . . Electromagnetic 14 | 3 . . 11 Robot Hit Streak 15 | 8 15 . 13 Robot Miss Streak 4 | 1 3 . 4 Penetration Max . | . . . . Secondary Targets 3 | . 3 . . Max Gunslinging Chain 1 | . 1 . . Shots Hit Robots 102 | 8 56 . 38 Core Hits 50 | 4 32 . 14 Critical Kills . | . . . . Critical Parts Destroyed . | . . . . Critical Strikes 7 | . 3 . 4 Burn 6 | . 3 . 3 Blast 1 | . . . 1 Melee Attacks . | . . . . Impact . | . . . . Slashing . | . . . . Piercing . | . . . . Sneak Attacks . | . . . . Combat Hostiles . | . . . . Follow-up Attacks . | . . . . Damage Inflicted 1477 | 97 806 . 574 Guns 1116 | 97 702 . 317 Cannons 257 | . . . 257 Explosions 100 | . 100 . . Melee . | . . . . Ramming 4 | . 4 . . Kinetic 266 | . . . 266 Thermal 970 | 60 702 . 208 Explosive 100 | . 100 . . Electromagnetic 137 | 37 . . 100 Impact . | . . . . Slashing . | . . . . Piercing . | . . . . Highest Corruption . | . . . . Average Corruption . | . . . . Corruption Purged . | . . . . Corruption Blocked . | . . . . Overload Shots . | . . . . Overflow Damage . | . . . . Projectiles . | . . . . Explosions . | . . . . Melee . | . . . . Knockbacks 1 | . . . 1 Impact . | . . . . Kinetic 1 | . . . 1 Secondary . | . . . . Self-Inflicted Damage . | . . . . Shots . | . . . . Rammed 2 | . 2 . . Targets Rammed 2 | . 2 . . Kicked . | . . . . Crushed . | . . . . Highest Temperature 144 | 70 144 . 69 Average Temperature 35 | 32 40 . 23 Received Heat Transfer 216 | . 126 . 90 Siege Activations . | . . . . Martial Activations . | . . . . Shielding Activations . | . . . . Robots Disrupted 1 | 1 . . . Combat Hostiles . | . . . . Robots Corrupted . | . . . . Combat Hostiles . | . . . . Parts Fried . | . . . . Impact Corruptions . | . . . . Robots Melted . | . . . . Combat Hostiles . | . . . . Parts Melted 6 | . 6 . . Heat Transferred 3223 | 173 2199 . 851 Parts Sabotaged . | . . . . Parts Stolen . | . . . . Parts Stripped . | . . . . Power Chain Reactions . | . . . . Alert | -11 -10 -10 -8 ------- Run | Yrd Mat Sub Mat Maximum Alert Level . | . . . . Low Security (%) 100 | 100 100 . 100 Level 1 . | . . . . Level 2 . | . . . . Level 3 . | . . . . Level 4 . | . . . . Level 5 . | . . . . High Security . | . . . . Max Security . | . . . . Peak Influence 198 | 5 198 . 60 Initial . | . . . . Average 59 | 1 73 . 18 Influence Increases 608 | 15 444 . 149 Destroy 0b10 Robot/C 380 | . 320 . 60 Destroy 0b10 Robot/NC 45 | 15 15 . 15 Destroy Leader 86 | . 72 . 14 Successful Hack 12 | . 12 . . Destroy Structure 10 | . 10 . . Lose Combat Pursuer 75 | . 15 . 60 Influence Decreases 603 | 15 381 63 144 Entered New Map 31 | . . 31 . Time Decay 535 | 15 381 32 107 Lost Part 37 | . . . 37 Squads Dispatched 4 | . 4 . . Investigation 2 | . 2 . . Extermination . | . . . . Reinforcement 2 | . 2 . . Assault . | . . . . Garrison . | . . . . Intercept . | . . . . Searches Triggered . | . . . . Construction Impeded . | . . . . Haulers Reinforced . | . . . . Active Scanning Responses . | . . . . Cargo Convoy Interrupts . | . . . . Stealth | -11 -10 -10 -8 --------- Run | Yrd Mat Sub Mat Distress Signals 3 | . 1 . 2 Communications Jammed . | . . . . Distress Signals . | . . . . Times Spotted 34 | . 26 . 8 Peak Tracking Total 6 | . 6 . 3 Tactical Retreats 4 | . 1 . 3 Traps | -11 -10 -10 -8 ------- Run | Yrd Mat Sub Mat Traps Triggered 2 | . 2 . . Indirectly . | . . . . Trap Hack Attempts . | . . . . Triggered . | . . . . Disarmed . | . . . . Reprogrammed . | . . . . Reused . | . . . . Traps Extracted . | . . . . Installed . | . . . . Triggered . | . . . . Machines | -11 -10 -10 -8 ---------- Run | Yrd Mat Sub Mat Machines Disabled . | . . . . Max in Single Turn . | . . . . Machines Repaired . | . . . . Machines Dismantled . | . . . . Machines Sabotaged . | . . . . Overloaded Fab Kills . | . . . . Hacking | -11 -10 -10 -8 --------- Run | Yrd Mat Sub Mat Machines Accessed 8 | . 7 . 1 Terminals 8 | . 7 . 1 Fabricators . | . . . . Repair Stations . | . . . . Recycling Units . | . . . . Scanalyzers . | . . . . Garrison Access . | . . . . Total Hacks 21 | . 19 . 2 Successful 12 | . 10 . 2 Failed 8 | . 8 . . Catastrophic 1 | . 1 . . Database Lockouts 1 | . 1 . . Manual 21 | . 19 . 2 Terminals 21 | . 19 . 2 Fabricators . | . . . . Repair Stations . | . . . . Recycling Units . | . . . . Scanalyzers . | . . . . Garrison Access . | . . . . Terminal Hacks 2 | . 2 . . Robot Analysis 1 | . 1 . . Terminal Index 1 | . 1 . . Fabricator Hacks . | . . . . Repair Station Hacks . | . . . . Recycling Unit Hacks . | . . . . Scanalyzer . | . . . . Garrison Access Hacks . | . . . . Unauthorized Hacks 10 | . 8 . 2 Terminals 10 | . 8 . 2 Botnet 3 | . 2 . 1 Skim 7 | . 6 . 1 Fabricators . | . . . . Repair Stations . | . . . . Recycling Units . | . . . . Scanalyzers . | . . . . Garrison Access . | . . . . Data Cores Recovered . | . . . . Used . | . . . . Hacking Detections 6 | . 5 . 1 Full Trace Events . | . . . . Feedback Events . | . . . . Feedback Blocked . | . . . . Robot Schematics Acquired . | . . . . Robots Built . | . . . . Authchips . | . . . . Time . | . . . . Total Robot Build Rating . | . . . . Part Schematics Acquired . | . . . . Parts Built . | . . . . Authchips . | . . . . Time . | . . . . Total Part Build Rating . | . . . . Part Studies Acquired . | . . . . Parts Repaired . | . . . . Time . | . . . . Parts Recycled . | . . . . Recycled Matter . | . . . . Retrieved Matter . | . . . . Retrieved Components . | . . . . Parts Scanalyzed . | . . . . Part Schematics Acquired . | . . . . Parts Damaged . | . . . . Bothacking | -11 -10 -10 -8 ------------ Run | Yrd Mat Sub Mat Used RIF Installer . | . . . . Robots Hacked . | . . . . Non-combat . | . . . . Combat . | . . . . Robot Hacks Applied . | . . . . Relay Couplers Released . | . . . . Fabnet Peak Effective % . | . . . . Robots Rewired . | . . . . Allies Hacked . | . . . . Hacks Repelled . | . . . . Allies | -11 -10 -10 -8 -------- Run | Yrd Mat Sub Mat Total Allies . | . . . . Largest Group . | . . . . Highest-Rated Group . | . . . . Highest-Rated Ally . | . . . . Total Orders . | . . . . Ally Attacks . | . . . . Total Damage . | . . . . Kills . | . . . . Allies Corrupted . | . . . . Allies Melted . | . . . . Intel | -11 -10 -10 -8 ------- Run | Yrd Mat Sub Mat Active Infowar (turns) 862 | 23 629 . 210 Seismic 862 | 23 629 . 210 Robot Analysis Total 1 | . 1 . . Derelict Logs Recovered 1 | . . 1 . Drone Launches . | . . . . Drone Recoveries . | . . . . Exploration | -11 -10 -10 -8 ------------- Run | Yrd Mat Sub Mat Turns Passed 1909 | 112 1381 95 321 Spaces Moved 765 | 52 513 60 140 Core 4 | 4 . . . Treads 761 | 48 513 60 140 Legs . | . . . . Wheels . | . . . . Hover . | . . . . Flight . | . . . . Fastest Speed 50 | 50 160 160 160 Average Speed 159 | 151 160 160 160 Slowest Speed 160 | 160 160 160 160 Overloaded Moves . | . . . . Propulsion Burnouts . | . . . . Robots Hopped . | . . . . Potential Cave-ins . | . . . . Cave-ins Triggered . | . . . . Exploration Rate (%) 31 | 6 98 10 10 Regions Visited 3 Branch Regions 1 Pre-discovered Areas 1 | . 1 . . Known Exits Taken 2 | . 1 1 . Unknown Exits Taken 1 | 1 . . . Scrap Searched . | . . . . Spaces Dug . | . . . . Terrain Destroyed 8 | . 8 . . Melee . | . . . . Projectile . | . . . . AOE 8 | . 8 . . Terrain Rammed . | . . . . Walls Destroyed . | . . . . Machines Disabled . | . . . . Actions | -11 -10 -10 -8 --------- Run | Yrd Mat Sub Mat Total 1307 | 71 981 59 196 Wait 419 | 2 394 . 23 Move 762 | 51 512 59 140 Hop . | . . . . Pick Up 18 | 4 8 . 6 Fast Attach 8 | 7 1 . . Attach 7 | . . . 7 Detach . | . . . . Swap 11 | 1 9 . 1 Drop 8 | . 8 . . Fire 71 | 5 47 . 19 Melee . | . . . . Ram . | . . . . Kick . | . . . . Crush 2 | . 2 . . Escape Stasis . | . . . . Rewire 1 | 1 . . . Trap . | . . . . Miscellaneous . | . . . . Route ------- -11/Scrapyard -10/Materials (discovered 5 exits: [*Mat x3] / [*Min] / *Sub) -10/Subcaves (discovered 2 exits: *Mat / Rec) -8/Materials (discovered 3 exits: Fac x3) History --------- Turn | Location | Event 15 | -11/Scrapyard | Discovered new exit (range 14) 113 | -11/Scrapyard | Entered Materials 304 | -10/Materials | Build established: Mutant 540 | -10/Materials | Discovered new exit (range 16) 667 | -10/Materials | Discovered new exit (range 5) 787 | -10/Materials | Discovered new exit (range 9) 909 | -10/Materials | Discovered new exit (range 10) 1005 | -10/Materials | Identified exit to Subcaves 1030 | -10/Materials | Central database locked down 1146 | -10/Materials | Learned 4 Recycling zone layouts 1253 | -10/Materials | Learned Storage trap positions 1294 | -10/Materials | Learned location of 2 exits from Subcaves 1412 | -10/Materials | Learned location of 3 exits from Materials 1494 | -10/Materials | Entered Subcaves 1495 | -10/Subcaves | Identified exit to Recycling 1495 | -10/Subcaves | Identified exit to Materials 1566 | -10/Subcaves | Learned 2 Materials zone layouts 1589 | -10/Subcaves | Entered Materials 1589 | -8/Materials | Evolved 4 slots: Propulsion x2, Utility x1, Weapon x1 1590 | -8/Materials | Identified exit to Factory 1832 | -8/Materials | Lost 3 parts (1n1u1w) 1910 | -8/Materials | Self-destructed Last Messages --------------- Testing... Terminal linked with 0 systems. Awaiting botnet instructions. >>Trojan(Skim) Trojan loaded successfully. Testing... Terminal linked with 0 systems. Please expand to 4 more systems! 01791_ A-02 Transporter destroyed. 01797_ Penetrated by Slug. 01801_ EM Pulse Gun destroyed. 01801_ Lgt. Treads destroyed. 01801_ Seismic Detector destroyed. 01827_ W-25 Informer destroyed. 01865_ R-06 Scavenger collects Imp. Hover Unit. 01868_ R-06 Scavenger collects Lgt. Deuterium Engine. 01871_ R-06 Scavenger collects Imp. Light Cannon. 01883_ R-06 Scavenger destroyed. Map ----- +----------------------------------------------------+ | | | | | | | | | | | ?????????????????????????????????????????????????? | | ?????????????????????????????????????????????????? | | ?????????????????????????????????????????????????? | | ?????????????????????????????????????????????????? | | ?????????????????????????????????????????????????? | | ?????????????????????????????????????????????????? | | ??????########?###########???????????????????????? | | ??????# #?# #???????????????????????? | | ??????# #?# """ #???????????????????????? | | ??????# #?# """ #???????????????????????? | | ??????# #?# """ #???????????????????????? | | ??????# #?# " #???????????????????????? | | ???????? % ??# T #???????????????????????? | | ##########+#???# " #???????????????????????? | | #???# #???????????????????????? | | ######## #???#####+###############+##??????????? | | #??????# #??????#%% % ! ?????????? | | ###??????# ######## % ]H* ?????????? | | ?????????# % =]%%*?????????? | | ???????### ########+#############?????????????? | | ???????# #?# u g @ #???????????????????? | | ???????# !!!#?#! """ """ #???????????????????? | | ???????# !!!!#?# """ """ #???????????????????? | | ???????########?# """ """ #???????????????????? | | ????????????????# #???????????????????? | | ????????????????##############???????????????????? | | ?????????????????????????????????????????????????? | | ?????????????????????????????????????????????????? | | ?????????????????????????????????????????????????? | | ?????????????????????????????????????????????????? | | ?????????????????????????????????????????????????? | | ?????????????????????????????????????????????????? | | ?????????????????????????????????????????????????? | | ?????????????????????????????????????????????????? | | ?????????????????????????????????????????????????? | | ?????????????????????????????????????????????????? | | ?????????????????????????????????????????????????? | | ?????????????????????????????????????????????????? | | ?????????????????????????????????????????????????? | | ?????????????????????????????????????????????????? | | ?????????????????????????????????????????????????? | | ?????????????????????????????????????????????????? | | ?????????????????????????????????????????????????? | | ?????????????????????????????????????????????????? | | ?????????????????????????????????????????????????? | +----------------------------------------------------+ Best States ------------- Heat Dissipation 45 Energy Generation 18 Energy Capacity 250 Matter Stores 300 Matter Capacity 300 Sight Range 16 Terrain Scan Density 10 Evasion (%) 40 Recoil Reduction 4 Item Schematics ----------------- None Robot Schematics ------------------ None Fabricated ------------ Nothing Repaired ---------- Nothing Studied --------- None Alien Tech Used ----------------- None Achievements -------------- None Challenges ------------ None Game ------ Seed PiercingSuspensionBeamcaster Manual? 0 Play Time 00:12:28 Cumulative 149.7 hours Start 2025.10.31 @ 17:37:31 End 2025.10.31 @ 17:47:57 Sessions 1 Manual Loads 0 Difficulty Rogue Special Mode None Game No. 111 Rogue 111 Adventurer 0 Explorer 0 Win Type - Total 4 Types 3/0/1/0/0/0/0/0/0/0 Lore% 55 Gallery% 50 Achievement% 31 Wizard Run 0 Options --------- Layout 2 ASCII 0 Keyboard 1 Movement Numpad Keybinds 0 Fullscreen 2 Font 32/SmallcapsGlow Map View 50x44 Zoom Use 0% Tactical HUD 1 Map Filters NONE Filters NONE Steam 1 RUN: 9223a9e5-c3c3-4eb3-bbd8-802734789269